Cogmind - Beta 16 @@@ ROGUE MODE // 2025.11.16 @ 13:07:19 Player: C0-2MO Result: Escaped! Performance ------------- Evolutions (9) 4500 Regions Visited (16) 3200 Robots Destroyed (38) 190 Value Destroyed (1097) 1097 Prototype IDs (2) 40 Alien Tech Used (0) 0 Bonus (19013) 19013 TOTAL SCORE: 28040 Bonus ------- Entered DSFs 1000 Win 3000 Win Speed 15013 Cogmind --------- Core Integrity 1419/1600 Matter 106/300 Energy 124/150 System Corruption 1% Temperature Cool (16) Movement Flying (20) Location To Epsilon Eridani Parts ------- > --- POWER (2) -------- Micro Fission Core > --- PROPULSION (10) -- Impulse Thruster Advanced Surge Thruster Cooled Field Propulsion Drive Impulse Thruster Array > --- UTILITY (9) ------ Advanced Cooling System Structural Scanner Machine Analyzer Advanced Reaction Control System Hacking Suite Makeshift Hacking Suite Advanced System Shield > --- WEAPON (4) ------- Nova Cannon Katana > --- INVENTORY (5) ---- Quantum Reactor Light Quantum Reactor Peak State ------------ > --- POWER ------------ Micro Fission Core Improved Fusion Compressor > --- PROPULSION ------- VTOL Module Impulse Thruster Impulse Thruster Advanced Surge Thruster Advanced Surge Thruster Cooled Field Propulsion Drive Impulse Thruster Array > --- UTILITY ---------- Advanced Cooling System Structural Scanner Machine Analyzer Advanced Reaction Control System Improved Utility Shielding Hacking Suite Makeshift Hacking Suite Makeshift Hacking Suite Advanced System Shield > --- WEAPON ----------- Nova Cannon Katana Dual-blade Saw > --- INVENTORY -------- Quantum Reactor Light Quantum Reactor [Rating: 123] Favorites ----------- Power Light Nuclear Core Engine Light Ion Engine Power Core Light Nuclear Core Reactor Light Antimatter Reactor Propulsion VTOL Module Hover Unit Gravmag Array Flight Unit VTOL Module Utility Makeshift Hacking Suite Device Structural Scanner Processor Melee Analysis Suite Hackware Makeshift Hacking Suite Protection Improved Utility Shielding Weapon Hypervelocity Railgun Energy Gun Small Laser Energy Cannon Nova Cannon Ballistic Gun Hypervelocity Railgun Launcher Improved Concussive RPG Slashing Weapon Great Axe Build | -11 -10 -9 -8 -7 -6 -6 -5 -5 -4 -4 -4 -3 -3 -2 -2 -1 ------- Run | Yrd Mat Mat Mat Fac Fac Ext Fac DSF Fac Upp Upp Res Arm Res DSF Acc Slots Evolved 18 | . . 2 2 2 2 . 2 . 2 . . 2 . 2 . 2 Power 1 | . . . . . 1 . . . . . . . . . . . Propulsion 8 | . . 2 . . 1 . 2 . 1 . . . . 1 . 1 Utility 7 | . . . . 2 . . . . 1 . . 2 . 1 . 1 Weapon 2 | . . . 2 . . . . . . . . . . . . . Parts Attached 82 | 2 3 3 4 13 4 . 2 3 13 6 . 3 13 . 8 5 Power 8 | . 1 . . 1 1 . 1 . 1 . . 1 . . 2 . Engine 2 | . 1 . . . 1 . . . . . . . . . . . Core 5 | . . . . 1 . . 1 . 1 . . . . . 2 . Reactor 1 | . . . . . . . . . . . . 1 . . . . Propulsion 32 | . 2 2 . 7 1 . 1 . 8 . . 1 5 . 4 1 Treads . | . . . . . . . . . . . . . . . . . Leg . | . . . . . . . . . . . . . . . . . Wheel . | . . . . . . . . . . . . . . . . . Hover 3 | . . . . . . . . . 3 . . . . . . . Flight 29 | . 2 2 . 7 1 . 1 . 5 . . 1 5 . 4 1 Utility 21 | . . . 1 2 1 . . 3 2 4 . 1 4 . . 3 Device 5 | . . . . 1 1 . . . . . . . 2 . . 1 Storage . | . . . . . . . . . . . . . . . . . Processor 4 | . . . . . . . . . 2 1 . . . . . 1 Hackware 9 | . . . . . . . . 3 . 3 . 1 1 . . 1 Protection 3 | . . . 1 1 . . . . . . . . 1 . . . Artifact . | . . . . . . . . . . . . . . . . . Weapon 21 | 2 . 1 3 3 1 . . . 2 2 . . 4 . 2 1 Energy Gun 2 | 1 . . 1 . . . . . . . . . . . . . Energy Cannon 1 | . . . . . . . . . . . . . . . . 1 Ballistic Gun 11 | 1 . 1 2 2 1 . . . . . . . 3 . 1 . Ballistic Cannon . | . . . . . . . . . . . . . . . . . Launcher 1 | . . . . . . . . . 1 . . . . . . . Special Weapon . | . . . . . . . . . . . . . . . . . Impact Weapon . | . . . . . . . . . . . . . . . . . Slashing Weapon 6 | . . . . 1 . . . . 1 2 . . 1 . 1 . Piercing Weapon . | . . . . . . . . . . . . . . . . . Special Melee Weapon . | . . . . . . . . . . . . . . . . . Unidentified Prototypes 2 | . . . . . 1 . . . . . . . . . . 1 Parts Lost 48 | . . 1 2 11 . 1 . 7 4 1 . 1 3 . 10 7 Power 5 | . . 1 . . . 1 . 1 . . . . . . 1 1 Propulsion 24 | . . . 1 6 . . . 4 3 1 . 1 1 . 4 3 Utility 6 | . . . . 1 . . . . . . . . 1 . 2 2 Weapon 13 | . . . 1 4 . . . 2 1 . . . 1 . 3 1 Highest Loss Streak 10 | . . 1 2 7 . 1 . 7 4 1 . 1 2 . 10 4 To Critical Strikes . | . . . . . . . . . . . . . . . . . Average Backups 3 | . 2 2 1 1 5 4 2 2 3 5 5 3 4 5 4 1 Power . | . . . . . 2 2 1 1 . . . . . 1 1 1 Propulsion . | . . . . . . 1 . . . . . . . . . . Utility 1 | . . . . . 1 1 1 1 3 5 5 3 3 2 1 . Weapon . | . 1 2 1 1 1 . . . . . . . . 2 1 . Tool/Special . | . . . . . . . . . . . . . . . . . Unused Backups 2 | . . . . . . . . . . . . . . . . 2 Power 2 | . . . . . . . . . . . . . . . . 2 Propulsion . | . . . . . . . . . . . . . . . . . Utility . | . . . . . . . . . . . . . . . . . Weapon . | . . . . . . . . . . . . . . . . . Tool/Special . | . . . . . . . . . . . . . . . . . Average Slot Usage (%) 64 | . 48 73 74 53 52 70 68 54 58 70 63 63 78 78 73 73 Core 2 | . . . . 2 6 6 5 2 3 3 . . . . 2 8 Hover 2 | . . . . . . . . . 11 10 10 5 2 . . . Flight 22 | . 14 42 34 22 29 33 33 21 11 18 15 16 23 26 23 22 Device 3 | . . . . . 4 6 5 5 1 . . . 3 8 8 12 Processor 2 | . . . . . . . . . 4 10 10 9 5 . . 3 Hackware 9 | . . . . . . . . 7 15 15 15 18 19 21 19 12 Protection 3 | . . . 5 6 . . . . 2 . . 3 4 . 3 4 Energy Gun 2 | . 14 11 7 6 . . . . . . . . . . . . Ballistic Gun 8 | . 14 11 27 10 5 17 17 10 2 . . . 10 13 10 . Slashing Weapon 4 | . . . . 1 6 6 5 5 5 9 10 9 2 4 2 7 Peak Build Rating 123 | 2 5 8 13 22 28 25 27 27 63 70 66 83 108 108 121 123 Average Rating 50 | 1 3 7 10 13 20 24 26 21 50 65 66 78 94 108 100 110 On Entrance 42 | . 2 5 7 11 16 23 22 27 21 63 66 66 83 108 108 96 Avg Prop Armor Cover (%) 10 | . . . 4 2 . . . . 21 12 11 8 5 . . . Naked Turns . | . . . . . . . . . . . . . . . . . Heaviest Build 46 | 3 6 7 12 16 16 19 20 20 15 15 10 24 40 39 46 38 Greatest Support 59 | 3 8 16 16 16 20 20 30 30 19 19 14 26 52 47 59 50 Greatest Overweight (x) 1 | . . . . 1 . . . . 1 . . . . . . . Average Overweight (x) . | . . . . . . . . . . . . . . . . . Largest Inventory Capacity 5 | 5 5 5 5 5 5 5 5 5 5 5 5 5 5 5 5 5 Average Capacity 5 | 5 5 5 5 5 5 5 5 5 5 5 5 5 5 5 5 5 Most Carried 5 | 1 4 3 2 5 5 5 3 4 5 5 5 5 5 5 5 2 Average Carried 3 | . 2 2 1 1 4 4 2 2 3 5 5 3 4 5 4 1 Final Capacity 5 | 5 5 5 5 5 5 5 5 5 5 5 5 5 5 5 5 5 Final Carried 5 | 1 4 3 1 5 5 4 2 4 5 5 5 4 5 5 3 2 Class Distribution -------------------- 50% | Hacker-Sprinter 23% | Scavenger-Sprinter 9% | Mutant 7% | Scavenger-Tank 5% | Hacker-Mutant Dominant Class ---------------- Mutant | -10/Materials Scavenger-Sprinter | -9/Materials Scavenger-Tank | -8/Materials Scavenger-Sprinter | -7/Factory Scavenger-Sprinter | -6/Factory Scavenger-Sprinter | -6/Extension Scavenger-Sprinter | -5/Factory Scavenger-Sprinter | -5/DSF Hacker-Mutant | -4/Factory Hacker-Sprinter | -4/Upper Caves Hacker-Sprinter | -4/Upper Caves Hacker-Sprinter | -3/Research Hacker-Sprinter | -3/Armory Hacker-Sprinter | -2/Research Hacker-Sprinter | -2/DSF Hacker-Sprinter | -1/Access Resources | -11 -10 -9 -8 -7 -6 -6 -5 -5 -4 -4 -4 -3 -3 -2 -2 -1 ----------- Run | Yrd Mat Mat Mat Fac Fac Ext Fac DSF Fac Upp Upp Res Arm Res DSF Acc Matter Collected 1397 | 214 13 . 66 219 51 2 30 12 227 70 . 40 124 . 235 94 Remotely . | . . . . . . . . . . . . . . . . . Salvage Created 1527 | . 32 . 130 208 162 . 30 . 440 36 . 116 122 . 224 27 Parts 102 | . 6 . 9 16 11 . 5 . 21 3 . 4 9 . 15 3 Haulers Intercepted 1 | . . . . . 1 . . . . . . . . . . . Recyclers Shooed 1 | . . . . . . . . . 1 . . . . . . . Parts Field Recycled . | . . . . . . . . . . . . . . . . . Retrieved Matter . | . . . . . . . . . . . . . . . . . Parts Self-Destructed . | . . . . . . . . . . . . . . . . . Prevented . | . . . . . . . . . . . . . . . . . Parts Restored . | . . . . . . . . . . . . . . . . . Kills | -11 -10 -9 -8 -7 -6 -6 -5 -5 -4 -4 -4 -3 -3 -2 -2 -1 ------- Run | Yrd Mat Mat Mat Fac Fac Ext Fac DSF Fac Upp Upp Res Arm Res DSF Acc Combat Hostiles Destroyed 26 | . 2 . 2 8 1 . . . 7 . . . 2 . 4 . Melee 13 | . . . . 2 1 . . . 7 . . . 1 . 2 . Guns 13 | . 2 . 2 6 . . . . . . . . 1 . 2 . Classes Destroyed 15 | . 1 . 2 1 2 . . . 3 1 . 2 1 . 1 1 Worker 2 | . . . . . . . . . . . . 2 . . . . Builder 3 | . . . . 1 . . 1 . . . . 1 . . . . Tunneler 1 | . . . . . . . . . . . . . . . . 1 Hauler 1 | . . . . . 1 . . . . . . . . . . . Recycler 2 | . . . . . . . . . 2 . . . . . . . Mechanic 1 | . . . . . . . . . 1 . . . . . . . Operator 1 | . . . . . 1 . . . . . . . . . . . Watcher 1 | . . . . . . . . . . . . 1 . . . . Swarmer 15 | . 2 . . 8 1 . . . 4 . . . . . . . Cutter 6 | . . . . . . . . . 3 . . . . . 3 . Saboteur 1 | . . . . . . . . . . . . . 1 . . . Sentry 2 | . . . 1 . . . . . . . . . 1 . . . Specialist 1 | . . . . . . . . . . . . . . . 1 . Heavy 1 | . . . 1 . . . . . . . . . . . . . Samaritan 1 | . . . . . . . . . . 1 . . . . . . Best Kill Streak 5 | . 2 . 2 3 3 . 1 . 5 . . 2 1 . 2 1 Combat Bots Only 3 | . 2 . 2 3 1 . . . 3 . . . 1 . 2 . Max Kills in Single Turn 1 | . 1 . 1 1 1 . 1 . 1 1 . 1 1 . 1 1 Gunslinging . | . . . . . . . . . . . . . . . . . Exploded . | . . . . . . . . . . . . . . . . . Melee 1 | . . . . 1 1 . . . 1 . . . 1 . 1 . Uniques/NPCs Destroyed . | . . . . . . . . . . . . . . . . . Combat | -11 -10 -9 -8 -7 -6 -6 -5 -5 -4 -4 -4 -3 -3 -2 -2 -1 -------- Run | Yrd Mat Mat Mat Fac Fac Ext Fac DSF Fac Upp Upp Res Arm Res DSF Acc Hostile Shots Fired 564 | . 17 22 15 95 4 12 . 39 54 3 2 16 169 . 45 71 Missed 303 | . 7 13 7 40 4 5 . 15 21 1 . 7 119 . 16 48 Hits 261 | . 10 9 8 55 . 7 . 24 33 2 2 9 50 . 29 23 Melee 36 | . . . . . . . . . 6 . . . 1 . 21 8 Projectile 225 | . 10 9 8 55 . 7 . 24 27 2 2 9 49 . 8 15 AOE 7 | . . . . . . . . . 2 . . . . . 2 3 Critical Strikes 15 | . . . . . . . . . . . . 1 1 . 10 3 Actively Blocked 1 | . . . . . . . . . . . . . . . 1 . Damage Taken 5626 | . 88 115 307 790 . 96 . 786 672 62 38 257 616 . 1033 766 Core 1400 | . 32 . 94 215 . 33 . 390 190 . . . 86 . 179 181 Absorbed by Shields 91 | . . . . . . . . 44 . . . . . . 47 . Redirected to Shielding 173 | . . . . . . . . . . . . . 38 . 73 62 Regen/Repaired (Parts) 148 | . . . . 11 . . . . . . . . 61 . . 76 Core Remaining (%) 86 | 100 87 100 82 69 . 96 . 61 . . 83 . 93 . 87 88 Volleys Fired 70 | . 3 . 6 34 . . . 13 . . . . 3 . 7 4 Largest 4 | . 2 . 4 4 . . . 3 . . . . 3 . 4 1 Hottest 160 | . 60 . 113 133 . . . 69 . . . . 120 . 160 113 Shots Fired 156 | . 6 . 24 60 . . . 29 . . . . 9 . 24 4 Gun 152 | . 6 . 24 60 . . . 29 . . . . 9 . 24 . Cannon 4 | . . . . . . . . . . . . . . . . 4 Launcher . | . . . . . . . . . . . . . . . . . Special . | . . . . . . . . . . . . . . . . . Kinetic 106 | . 3 . 19 22 . . . 29 . . . . 9 . 24 . Thermal 50 | . 3 . 5 38 . . . . . . . . . . . 4 Explosive . | . . . . . . . . . . . . . . . . . Electromagnetic . | . . . . . . . . . . . . . . . . . Robot Hit Streak 16 | . 2 . 16 8 . . . 5 . . . . 5 . 4 . Robot Miss Streak 6 | . 2 . 2 6 . . . 1 . . . . 1 . 5 . Penetration Max 1 | . . . . . . . . . . . . . 1 . 1 . Secondary Targets 2 | . . . . 2 . . . . . . . . . . . . Max Gunslinging Chain 1 | . . . . 1 . . . . . . . . . . . . Shots Hit Robots 132 | . 3 . 18 36 3 . 1 17 21 1 . 6 7 . 15 4 Core Hits 58 | . 2 . 7 15 3 . . 6 9 . . 2 4 . 9 1 Critical Kills 2 | . . . . . . . . . . . . . 1 . 1 . Critical Parts Destroyed 4 | . . . . . . . . . . . . . 1 . 3 . Critical Strikes 9 | . . . . . . . . . 2 . . . 2 . 4 1 Destroy 6 | . . . . . . . . . . . . . 2 . 4 . Sever 3 | . . . . . . . . . 2 . . . . . . 1 Melee Attacks 81 | . . . . 3 4 . 5 . 34 5 . 7 7 . 4 12 Impact . | . . . . . . . . . . . . . . . . . Slashing 81 | . . . . 3 4 . 5 . 34 5 . 7 7 . 4 12 Piercing . | . . . . . . . . . . . . . . . . . Sneak Attacks 13 | . . . . 1 1 . 1 . 3 1 . 3 . . 1 2 Combat Hostiles . | . . . . . . . . . . . . . . . . . Follow-up Attacks . | . . . . . . . . . . . . . . . . . Damage Inflicted 3720 | . 37 . 215 528 179 . 98 320 1019 123 . 585 77 . 316 223 Guns 1136 | . 37 . 215 344 . . . 320 . . . . 77 . 143 . Cannons . | . . . . . . . . . . . . . . . . . Explosions . | . . . . . . . . . . . . . . . . . Melee 2584 | . . . . 184 179 . 98 . 1019 123 . 585 . . 173 223 Ramming . | . . . . . . . . . . . . . . . . . Kinetic 877 | . 27 . 190 120 . . . 320 . . . . 77 . 143 . Thermal 259 | . 10 . 25 224 . . . . . . . . . . . . Explosive . | . . . . . . . . . . . . . . . . . Electromagnetic . | . . . . . . . . . . . . . . . . . Impact . | . . . . . . . . . . . . . . . . . Slashing 2584 | . . . . 184 179 . 98 . 1019 123 . 585 . . 173 223 Piercing . | . . . . . . . . . . . . . . . . . Highest Corruption 4 | . . . . 1 . . 1 1 . . . . . . 4 1 Average Corruption 1 | . . . . 1 . . 1 1 . . . . . . 1 1 Corruption Purged . | . . . . . . . . . . . . . . . . . Corruption Blocked . | . . . . . . . . . . . . . . . . . Effects 6 | . . . . 3 . . 1 1 . . . . . . . 1 Message Errors 1 | . . . . 1 . . . . . . . . . . . . Matter Fused 2 | . . . . 2 . . . . . . . . . . . . Energy Discharges 1 | . . . . . . . . 1 . . . . . . . . Data Loss (minor) 2 | . . . . . . . 1 . . . . . . . . 1 Overload Shots . | . . . . . . . . . . . . . . . . . Overflow Damage 636 | . . . . 70 . . 58 . 183 99 . 226 . . . . Projectiles . | . . . . . . . . . . . . . . . . . Explosions . | . . . . . . . . . . . . . . . . . Melee 636 | . . . . 70 . . 58 . 183 99 . 226 . . . . Knockbacks . | . . . . . . . . . . . . . . . . . Impact . | . . . . . . . . . . . . . . . . . Kinetic . | . . . . . . . . . . . . . . . . . Secondary . | . . . . . . . . . . . . . . . . . Self-Inflicted Damage . | . . . . . . . . . . . . . . . . . Shots . | . . . . . . . . . . . . . . . . . Rammed . | . . . . . . . . . . . . . . . . . Targets Rammed . | . . . . . . . . . . . . . . . . . Kicked . | . . . . . . . . . . . . . . . . . Crushed . | . . . . . . . . . . . . . . . . . Highest Temperature 217 | . 15 8 217 109 . . 21 11 . . . . 60 . 74 32 Average Temperature 36 | . 10 3 105 45 . . 8 11 . . . . 18 . 23 16 Received Heat Transfer 255 | . 30 66 18 57 . . . . 9 . 12 9 27 . . 27 Siege Activations . | . . . . . . . . . . . . . . . . . Martial Activations . | . . . . . . . . . . . . . . . . . Shielding Activations . | . . . . . . . . . . . . . . . . . Robots Disrupted . | . . . . . . . . . . . . . . . . . Combat Hostiles . | . . . . . . . . . . . . . . . . . Robots Corrupted . | . . . . . . . . . . . . . . . . . Combat Hostiles . | . . . . . . . . . . . . . . . . . Parts Fried . | . . . . . . . . . . . . . . . . . Impact Corruptions . | . . . . . . . . . . . . . . . . . Robots Melted . | . . . . . . . . . . . . . . . . . Combat Hostiles . | . . . . . . . . . . . . . . . . . Parts Melted . | . . . . . . . . . . . . . . . . . Heat Transferred 647 | . 25 . 74 548 . . . . . . . . . . . . Parts Sabotaged 1 | . . . . . . . . . . . . . 1 . . . Parts Stolen . | . . . . . . . . . . . . . . . . . Parts Stripped . | . . . . . . . . . . . . . . . . . Power Chain Reactions . | . . . . . . . . . . . . . . . . . Alert | -11 -10 -9 -8 -7 -6 -6 -5 -5 -4 -4 -4 -3 -3 -2 -2 -1 ------- Run | Yrd Mat Mat Mat Fac Fac Ext Fac DSF Fac Upp Upp Res Arm Res DSF Acc Maximum Alert Level 2 | . . . . 1 . . . . . . . . 1 . . 2 Low Security (%) 86 | 100 100 100 100 76 100 100 100 100 100 . . 100 84 100 100 44 Level 1 11 | . . . . 23 . . . . . . . . 15 . . 40 Level 2 1 | . . . . . . . . . . . . . . . . 15 Level 3 . | . . . . . . . . . . . . . . . . . Level 4 . | . . . . . . . . . . . . . . . . . Level 5 . | . . . . . . . . . . . . . . . . . High Security . | . . . . . . . . . . . . . . . . . Max Security . | . . . . . . . . . . . . . . . . . Peak Influence 539 | . 54 14 76 241 162 72 70 42 128 . . 130 248 129 146 539 Initial 129 | . . 14 . 34 107 72 28 42 . . . 47 58 129 96 69 Average 108 | . 30 6 40 149 136 69 42 9 68 . . 89 115 129 117 249 Influence Increases 2196 | . 64 . 126 437 72 7 52 . 248 60 . 115 290 . 120 605 Destroy 0b10 Robot/C 520 | . 40 . 40 160 20 . . . 140 . . . 40 . 80 . Destroy 0b10 Robot/NC 60 | . . . . 5 10 . 5 . 15 . . 20 . . . 5 Destroy Leader 104 | . 10 . 20 20 12 . . . 20 . . 2 10 . 10 . Successful Hack 163 | . 14 . 6 42 . 7 24 . 3 . . 18 22 . . 27 Disable Machine 45 | . . . . . . . . . . . . . 15 . . 30 Destroy Structure 104 | . . . . . . . 8 . 10 . . . 8 . . 78 Partial Spotted 150 | . . . 60 . . . 15 . 15 . . . 15 . . 45 Lose Combat Pursuer 1050 | . . . . 210 30 . . . 45 60 . 75 180 . 30 420 Influence Decreases 1672 | . 30 34 50 292 144 97 51 60 120 88 29 74 154 119 133 197 Entered New Map 646 | . . 20 . 42 114 77 31 18 . 48 19 24 54 119 33 47 Time Decay 584 | . 30 14 30 140 30 10 20 . 80 30 10 40 70 . . 80 Lost Part 442 | . . . 20 110 . 10 . 42 40 10 . 10 30 . 100 70 Squads Dispatched 27 | . 3 1 1 3 1 . 1 1 2 . . . 3 . 2 9 Investigation 14 | . 2 1 . 3 1 . 1 . . . . . 2 . . 4 Extermination 4 | . . . . . . . . . . . . . 1 . . 3 Reinforcement 9 | . 1 . 1 . . . . 1 2 . . . . . 2 2 Assault . | . . . . . . . . . . . . . . . . . Garrison . | . . . . . . . . . . . . . . . . . Intercept . | . . . . . . . . . . . . . . . . . Searches Triggered . | . . . . . . . . . . . . . . . . . Construction Impeded . | . . . . . . . . . . . . . . . . . Haulers Reinforced . | . . . . . . . . . . . . . . . . . Active Scanning Responses . | . . . . . . . . . . . . . . . . . Cargo Convoy Interrupts . | . . . . . . . . . . . . . . . . . Stealth | -11 -10 -9 -8 -7 -6 -6 -5 -5 -4 -4 -4 -3 -3 -2 -2 -1 --------- Run | Yrd Mat Mat Mat Fac Fac Ext Fac DSF Fac Upp Upp Res Arm Res DSF Acc Distress Signals 6 | . . 1 . . . . . . . . . 1 2 . . 2 Communications Jammed . | . . . . . . . . . . . . . . . . . Distress Signals . | . . . . . . . . . . . . . . . . . Times Spotted 164 | . 9 11 7 22 5 4 . 3 13 5 3 16 16 . 14 36 Peak Tracking Total 24 | . 6 11 5 11 3 5 . 2 5 4 3 11 18 . 11 24 Tactical Retreats 19 | . . . . 5 1 . . . 1 1 . 1 3 . 1 6 Traps | -11 -10 -9 -8 -7 -6 -6 -5 -5 -4 -4 -4 -3 -3 -2 -2 -1 ------- Run | Yrd Mat Mat Mat Fac Fac Ext Fac DSF Fac Upp Upp Res Arm Res DSF Acc Traps Triggered 6 | . . . . 1 . . . 1 . . . 1 . . 2 1 Indirectly . | . . . . . . . . . . . . . . . . . Trap Hack Attempts . | . . . . . . . . . . . . . . . . . Triggered . | . . . . . . . . . . . . . . . . . Disarmed . | . . . . . . . . . . . . . . . . . Reprogrammed . | . . . . . . . . . . . . . . . . . Reused . | . . . . . . . . . . . . . . . . . Traps Extracted . | . . . . . . . . . . . . . . . . . Installed . | . . . . . . . . . . . . . . . . . Triggered . | . . . . . . . . . . . . . . . . . Machines | -11 -10 -9 -8 -7 -6 -6 -5 -5 -4 -4 -4 -3 -3 -2 -2 -1 ---------- Run | Yrd Mat Mat Mat Fac Fac Ext Fac DSF Fac Upp Upp Res Arm Res DSF Acc Machines Disabled 3 | . . . . . . . . . . . . . 1 . . 2 Max in Single Turn 1 | . . . . . . . . . . . . . 1 . . 1 Garrison Access 2 | . . . . . 1 . . . . . . 1 . . . . Energy Cycler 1 | . . . . . . . . . . . . . . . . 1 Machines Repaired . | . . . . . . . . . . . . . . . . . Machines Dismantled . | . . . . . . . . . . . . . . . . . Machines Sabotaged . | . . . . . . . . . . . . . . . . . Overloaded Fab Kills . | . . . . . . . . . . . . . . . . . Hacking | -11 -10 -9 -8 -7 -6 -6 -5 -5 -4 -4 -4 -3 -3 -2 -2 -1 --------- Run | Yrd Mat Mat Mat Fac Fac Ext Fac DSF Fac Upp Upp Res Arm Res DSF Acc Machines Accessed 33 | . 2 2 1 4 3 1 2 . 2 1 . 2 6 1 . 6 Terminals 22 | . 2 2 1 2 2 1 1 . . . . 1 5 1 . 4 Fabricators 2 | . . . . . . . . . 1 . . . . . . 1 Repair Stations 3 | . . . . 1 . . . . . . . . 1 . . 1 Recycling Units 1 | . . . . . . . . . 1 . . . . . . . Scanalyzers 1 | . . . . . . . 1 . . . . . . . . . Garrison Access 3 | . . . . 1 1 . . . . . . 1 . . . . Total Hacks 90 | . 5 6 2 9 5 1 5 . 4 1 . 5 27 1 . 19 Successful 41 | . 2 2 1 4 1 1 3 . 3 1 . 2 16 1 . 4 Failed 49 | . 3 4 1 5 4 . 2 . 1 . . 3 11 . . 15 Catastrophic 11 | . 2 2 1 . 2 . . . . . . . 1 . . 3 Database Lockouts . | . . . . . . . . . . . . . . . . . Manual 51 | . 3 5 2 3 4 . . . 1 . . . 22 . . 11 Terminals 68 | . 5 6 2 5 4 1 1 . . . . 3 26 1 . 14 Fabricators 4 | . . . . . . . . . 1 . . . . . . 3 Repair Stations 4 | . . . . 1 . . . . . . . . 1 . . 2 Recycling Units 3 | . . . . . . . . . 3 . . . . . . . Scanalyzers 4 | . . . . . . . 4 . . . . . . . . . Garrison Access 6 | . . . . 3 1 . . . . . . 2 . . . . Terminal Hacks 15 | . 1 . . 1 . 1 1 . . 1 . 1 7 1 . 1 Robot Analysis 2 | . . . . . . . . . . . . . 2 . . . Open Door 2 | . . . . . . 1 . . . 1 . . . . . . Open DSF 2 | . . . . . . . 1 . . . . . . 1 . . Level Access Points 3 | . . . . 1 . . . . . . . . 1 . . 1 Branch Access Points 1 | . . . . . . . . . . . . 1 . . . . Terminal Index 1 | . . . . . . . . . . . . . 1 . . . Zone Layout 4 | . 1 . . . . . . . . . . . 3 . . . Fabricator Hacks 2 | . . . . . . . . . 1 . . . . . . 1 Network Status 2 | . . . . . . . . . 1 . . . . . . 1 Repair Station Hacks . | . . . . . . . . . . . . . . . . . Recycling Unit Hacks 1 | . . . . . . . . . 1 . . . . . . . Retrieve Components 1 | . . . . . . . . . 1 . . . . . . . Scanalyzer 2 | . . . . . . . 2 . . . . . . . . . Retrieve Study 2 | . . . . . . . 2 . . . . . . . . . Garrison Access Hacks 2 | . . . . . 1 . . . . . . 1 . . . . Seal Access 2 | . . . . . 1 . . . . . . 1 . . . . Unauthorized Hacks 19 | . 1 2 1 3 . . . . 1 . . . 9 . . 2 Terminals 15 | . 1 2 1 2 . . . . . . . . 8 . . 1 Track 1 | . . . . . . . . . . . . . 1 . . . Assimilate 1 | . . . 1 . . . . . . . . . . . . . Botnet 8 | . 1 2 . 2 . . . . . . . . 2 . . 1 Disrupt 1 | . . . . . . . . . . . . . 1 . . . Skim 4 | . . . . . . . . . . . . . 4 . . . Fabricators . | . . . . . . . . . . . . . . . . . Repair Stations 3 | . . . . 1 . . . . . . . . 1 . . 1 Patch 3 | . . . . 1 . . . . . . . . 1 . . 1 Recycling Units 1 | . . . . . . . . . 1 . . . . . . . Mask 1 | . . . . . . . . . 1 . . . . . . . Scanalyzers . | . . . . . . . . . . . . . . . . . Garrison Access . | . . . . . . . . . . . . . . . . . Data Cores Recovered 1 | . . . . . 1 . . . . . . . . . . . Used . | . . . . . . . . . . . . . . . . . Hacking Detections 25 | . 2 2 1 3 2 1 1 . 1 . . 1 5 . . 6 Full Trace Events 12 | . 2 2 1 2 1 . 1 . . . . . 1 . . 2 Feedback Events 3 | . . . . 1 . . 1 . . . . . . . . 1 Corruption 2 | . . . . 1 . . 1 . . . . . . . . . Hackware Fried 1 | . . . . . . . . . . . . . . . . 1 Feedback Blocked . | . . . . . . . . . . . . . . . . . Robot Schematics Acquired . | . . . . . . . . . . . . . . . . . Robots Built . | . . . . . . . . . . . . . . . . . Authchips . | . . . . . . . . . . . . . . . . . Time . | . . . . . . . . . . . . . . . . . Total Robot Build Rating . | . . . . . . . . . . . . . . . . . Part Schematics Acquired . | . . . . . . . . . . . . . . . . . Parts Built . | . . . . . . . . . . . . . . . . . Authchips . | . . . . . . . . . . . . . . . . . Time . | . . . . . . . . . . . . . . . . . Total Part Build Rating . | . . . . . . . . . . . . . . . . . Part Studies Acquired 2 | . . . . . . . 2 . . . . . . . . . Parts Repaired . | . . . . . . . . . . . . . . . . . Time . | . . . . . . . . . . . . . . . . . Parts Recycled . | . . . . . . . . . . . . . . . . . Recycled Matter . | . . . . . . . . . . . . . . . . . Retrieved Matter . | . . . . . . . . . . . . . . . . . Retrieved Components 8 | . . . . . . . . . 8 . . . . . . . Parts Scanalyzed . | . . . . . . . . . . . . . . . . . Part Schematics Acquired . | . . . . . . . . . . . . . . . . . Parts Damaged . | . . . . . . . . . . . . . . . . . Bothacking | -11 -10 -9 -8 -7 -6 -6 -5 -5 -4 -4 -4 -3 -3 -2 -2 -1 ------------ Run | Yrd Mat Mat Mat Fac Fac Ext Fac DSF Fac Upp Upp Res Arm Res DSF Acc Used RIF Installer . | . . . . . . . . . . . . . . . . . Robots Hacked . | . . . . . . . . . . . . . . . . . Non-combat . | . . . . . . . . . . . . . . . . . Combat . | . . . . . . . . . . . . . . . . . Robot Hacks Applied . | . . . . . . . . . . . . . . . . . Relay Couplers Released . | . . . . . . . . . . . . . . . . . Fabnet Peak Effective % . | . . . . . . . . . . . . . . . . . Robots Rewired . | . . . . . . . . . . . . . . . . . Allies Hacked . | . . . . . . . . . . . . . . . . . Hacks Repelled . | . . . . . . . . . . . . . . . . . Allies | -11 -10 -9 -8 -7 -6 -6 -5 -5 -4 -4 -4 -3 -3 -2 -2 -1 -------- Run | Yrd Mat Mat Mat Fac Fac Ext Fac DSF Fac Upp Upp Res Arm Res DSF Acc Total Allies . | . . . . . . . . . . . . . . . . . Largest Group . | . . . . . . . . . . . . . . . . . Highest-Rated Group . | . . . . . . . . . . . . . . . . . Highest-Rated Ally . | . . . . . . . . . . . . . . . . . Total Orders . | . . . . . . . . . . . . . . . . . Ally Attacks . | . . . . . . . . . . . . . . . . . Total Damage . | . . . . . . . . . . . . . . . . . Kills . | . . . . . . . . . . . . . . . . . Allies Corrupted . | . . . . . . . . . . . . . . . . . Allies Melted . | . . . . . . . . . . . . . . . . . Intel | -11 -10 -9 -8 -7 -6 -6 -5 -5 -4 -4 -4 -3 -3 -2 -2 -1 ------- Run | Yrd Mat Mat Mat Fac Fac Ext Fac DSF Fac Upp Upp Res Arm Res DSF Acc Active Infowar (turns) 558 | . . . . 18 54 23 41 83 62 . . . 73 5 35 164 Terrain 18 | . . . . 18 . . . . . . . . . . . . Structural 277 | . . . . . . . . . . . . . 73 5 35 164 Seismic 283 | . . . . . 54 23 41 83 62 . . . 20 . . . Machine Analysis 136 | . . . . . . . . . . . . . . . . 136 Robot Analysis Total 2 | . . . . . . . . . . . . . 2 . . . Derelict Logs Recovered . | . . . . . . . . . . . . . . . . . Drone Launches . | . . . . . . . . . . . . . . . . . Drone Recoveries . | . . . . . . . . . . . . . . . . . Exploration | -11 -10 -9 -8 -7 -6 -6 -5 -5 -4 -4 -4 -3 -3 -2 -2 -1 ------------- Run | Yrd Mat Mat Mat Fac Fac Ext Fac DSF Fac Upp Upp Res Arm Res DSF Acc Turns Passed 1498 | 18 66 56 66 287 60 23 41 83 198 76 28 94 151 5 81 165 Spaces Moved 3204 | 28 119 168 111 481 156 95 122 119 214 204 102 220 369 20 95 581 Core 70 | 28 42 . . . . . . . . . . . . . . . Treads . | . . . . . . . . . . . . . . . . . Legs . | . . . . . . . . . . . . . . . . . Wheels . | . . . . . . . . . . . . . . . . . Hover . | . . . . . . . . . . . . . . . . . Flight 3134 | . 77 168 111 481 156 95 122 119 214 204 102 220 369 20 95 581 Fastest Speed 6 | 50 37 31 31 26 23 23 20 20 24 24 27 27 19 24 6 17 Average Speed 27 | 50 41 31 35 30 24 23 20 29 32 25 27 28 24 24 19 20 Slowest Speed 115 | 50 50 31 37 115 26 23 20 32 112 27 27 32 32 24 34 28 Overloaded Moves 84 | . . . . . . . . . . . . . . . 10 74 Propulsion Burnouts . | . . . . . . . . . . . . . . . . . Robots Hopped 46 | . 2 15 . 8 3 . . 2 . . . . 5 . 5 6 Potential Cave-ins . | . . . . . . . . . . . . . . . . . Cave-ins Triggered . | . . . . . . . . . . . . . . . . . Exploration Rate (%) 22 | 3 29 22 22 19 6 24 6 80 7 41 15 6 40 1 46 23 Regions Visited 16 Branch Regions 4 Pre-discovered Areas . | . . . . . . . . . . . . . . . . . Known Exits Taken 5 | . . . . 1 . . 1 . . . . 1 1 1 . . Unknown Exits Taken 9 | 1 1 1 1 . 1 1 . . 1 1 1 . . . . . Scrap Searched 1 | . . . . . . . . . . 1 . . . . . . Spaces Dug 25 | . . . . . . . 4 . 5 3 . . 5 . . 8 Terrain Destroyed 43 | . . . . . . . 4 . 5 3 . . 5 . . 26 Melee 23 | . . . . . . . 4 . 5 3 . . 5 . . 6 Projectile 2 | . . . . . . . . . . . . . . . . 2 AOE 18 | . . . . . . . . . . . . . . . . 18 Terrain Rammed . | . . . . . . . . . . . . . . . . . Walls Destroyed . | . . . . . . . . . . . . . . . . . Machines Disabled . | . . . . . . . . . . . . . . . . . Actions | -11 -10 -9 -8 -7 -6 -6 -5 -5 -4 -4 -4 -3 -3 -2 -2 -1 --------- Run | Yrd Mat Mat Mat Fac Fac Ext Fac DSF Fac Upp Upp Res Arm Res DSF Acc Total 3487 | 30 125 155 122 553 166 95 129 141 278 218 101 235 402 19 123 595 Wait 34 | . . . . 7 3 . 1 . 9 1 . 4 4 . 5 . Move 3100 | 27 114 137 110 465 149 94 121 114 213 203 101 219 359 19 87 568 Hop 41 | . 2 15 . 7 3 . . 2 . . . . 4 . 2 6 Pick Up 18 | 1 3 . 1 3 1 . . 2 1 . . 1 3 . 1 1 Fast Attach 65 | 2 3 . 1 12 4 . . 3 12 2 . 2 11 . 10 3 Attach 26 | . . 2 3 3 1 1 2 . 4 . . 2 3 . 3 2 Detach 9 | . . . . 4 . . . . 4 . . . 1 . . . Swap 8 | . . 1 1 . . . . . . 4 . . 1 . 1 . Drop 15 | . . . . 2 1 . . . 1 4 . 1 6 . . . Fire 70 | . 3 . 6 34 . . . 13 . . . . 3 . 7 4 Melee 78 | . . . . 3 4 . 5 . 34 4 . 6 7 . 4 11 Ram . | . . . . . . . . . . . . . . . . . Kick . | . . . . . . . . . . . . . . . . . Crush . | . . . . . . . . . . . . . . . . . Escape Stasis 23 | . . . . 13 . . . 7 . . . . . . 3 . Rewire . | . . . . . . . . . . . . . . . . . Trap . | . . . . . . . . . . . . . . . . . Miscellaneous . | . . . . . . . . . . . . . . . . . Route ------- -11/Scrapyard -10/Materials -9/Materials (discovered 2 exits: *Mat / [*Min]) -8/Materials -7/Factory (discovered 4 exits: *Fac x4) -6/Factory -6/Extension -5/Factory -5/DSF -4/Factory -4/Upper Caves -4/Upper Caves -3/Research (discovered 3 exits: *Arm / Qua x2) -3/Armory (discovered 2 exits: *Res x2) -2/Research -2/DSF -1/Access To Epsilon Eridani History --------- Turn | Location | Event 5 | -11/Scrapyard | Discovered new exit (range 16) 19 | -11/Scrapyard | Entered Materials 84 | -10/Materials | Discovered new exit (range 3) 85 | -10/Materials | Entered another Materials area 85 | -9/Materials | Evolved 2 slots: Propulsion x2 119 | -9/Materials | Discovered new exit (range 16) 136 | -9/Materials | Discovered new exit (range 13) 141 | -9/Materials | Entered another Materials area 141 | -8/Materials | Evolved 2 slots: Weapon x2 184 | -8/Materials | Discovered new exit (range 15) 207 | -8/Materials | Entered Factory 207 | -7/Factory | Evolved 2 slots: Utility x2 379 | -7/Factory | Lost 7 parts (3n1u3w) 446 | -7/Factory | Identified exit to Factory 454 | -7/Factory | Lost 3 parts (2n1w) 494 | -7/Factory | Entered another Factory area 494 | -6/Factory | Evolved 2 slots: Power x1, Propulsion x1 543 | -6/Factory | Spotted B-75 Beast 551 | -6/Factory | Discovered new exit (range 16) 554 | -6/Factory | Entered Extension 573 | -6/Extension | Spotted B-75 Beast 574 | -6/Extension | Spotted B-75 Beast 577 | -6/Extension | Discovered new exit (range 3) 577 | -6/Extension | Entered Factory 577 | -5/Factory | Evolved 2 slots: Propulsion x2 618 | -5/Factory | Identified exit to DSF 618 | -5/Factory | Entered DSF 634 | -5/DSF | Additional patrols routed to DSF 697 | -5/DSF | Discovered new exit (range 12) 701 | -5/DSF | Entered Factory 701 | -4/Factory | Evolved 2 slots: Propulsion x1, Utility x1 710 | -4/Factory | Lost 7 parts (1p4n2w) 849 | -4/Factory | Lost 4 parts (3n1w) 887 | -4/Factory | Discovered new exit (range 7) 899 | -4/Factory | Entered Upper Caves 946 | -4/Upper Caves | Spotted B-86 Titan 973 | -4/Upper Caves | Discovered new exit (range 7) 975 | -4/Upper Caves | Entered another Upper Caves area 1002 | -4/Upper Caves | Discovered new exit (range 3) 1003 | -4/Upper Caves | Entered Research 1003 | -3/Research | Evolved 2 slots: Utility x2 1035 | -3/Research | Identified exit to Armory 1035 | -3/Research | Identified exit to Quarantine 1097 | -3/Research | Entered Armory 1100 | -3/Armory | Identified exit to Research 1146 | -3/Armory | Build established: Hacker-Sprinter 1196 | -3/Armory | Spotted B-86 Titan 1248 | -3/Armory | Entered Research 1248 | -2/Research | Evolved 2 slots: Propulsion x1, Utility x1 1253 | -2/Research | Identified exit to DSF 1253 | -2/Research | Entered DSF 1272 | -2/DSF | Additional patrols routed to DSF 1331 | -2/DSF | Discovered new exit (range 13) 1334 | -2/DSF | Entered Access 1334 | -1/Access | Evolved 2 slots: Propulsion x1, Utility x1 1351 | -1/Access | Energy Cycler disabled 1362 | -1/Access | Lost 10 parts (1p4n2u3w) 1398 | -1/Access | Mak. Hacking Suite fried by hacking feedback 1432 | -1/Access | Lost 3 parts (2n1u) 1433 | -1/Access | Identified exit to Surface 1499 | *** | Escaped! Last Messages --------------- 01476_ Triggered Alarm Trap. 01476_ An alarm sounds. 01476_ ALERT: Alarm triggered, dispatching investigation squad. 01477_ >> Machine Analyzer network decryption results: 01477_ Garrison Access x2 01477_ C-57 Dissector knocked back. 01477_ Knocked back. 01480_ System corrupted: Component data lost. 01480_ Adv. Surge Thruster destroyed. 01480_ Dual-blade Saw destroyed. 01482_ ALERT: Potential suspicious activity detected, Programmers report to Access Zone 9L. 01490_ Slug penetrates Wall. 01490_ Imp. Utility Shielding destroyed. 01495_ Main Access Shell breached. 01497_ Imp. Fusion Compressor destroyed. 01498_ The Access Shell folds into the floor. Map ----- +----------------------------------------------------+ | ?????????????????????????????????????????????????? | | ?????????????????????????????????????????????????? | | ?????????????????????????????????????????????????? | | ?????????????????????????????????????????????????? | | ?????????????????????????????????????????????????? | | ?????????????????????????????????????????????????? | | #????????????????????????????????????????????????? | | #????????????????????????????????????????????????? | | #??## ???????????????????????????????????????????? | | #??## ### ####################???????????? | | #??## ########+######################???????????? | | ???## ???????????? | | ???## ????????????? | | ???#####+### ####### ""##????????????????? | | ????? ## ####### ""##????????????????? | | ??????????## ##???## c ""##????????????????? | | ?????"????## ##???## c c T##????????????????? | | ????"""???## ##???## ""##????????????????? | | ???"""??? ## ###?### ""###???????????????? | | ????"???? ## ###?### ""###???????????????? | | ????????? # ##?## ##???????????????? | | ????????? + ##?### ###???????????????? | | ?????????## ##?### ###???????????????? | | ???????#### ###### ##????????????????? | | ############+######## ##????????????????? | | ######### #### @" ##????????????????? | | # ## #### "" ##????????????????? | | # ## " #### ##????????????????? | | # "" """ #### ##????????????????? | | + !## """ #### ##????????????????? | | # ## " ####""""""""""##????????????????? | | # ## ####"????????"##????????????????? | | ######### ##??????????????????????????????? | | ######### ##??????????????????????????????? | | ???????############??????????????????????????????? | | ???????############??????????????????????????????? | | ?????????????????????????????????????????????????? | | ?????????????????????????????????????????????????? | | ???????????"?????????????????????????????????????? | | ?????????""""????????????????????????????????????? | | ????????"""""????????????????????????????????????? | | ?????????"""""???????????????????????????????????? | | ?????????""""????????????????????????????????????? | | ??????????"??????????????????????????????????????? | | ?????????????????????????????????????????????????? | | ?????????????????????????????????????????????????? | | ?????????????????????????????????????????????????? | | ?????????????????????????????????????????????????? | | ?????????????????????????????????????????????????? | | ?????????????????????????????????????????????????? | +----------------------------------------------------+ Best States ------------- Heat Dissipation 83 Energy Generation 45 Energy Capacity 170 Matter Stores 300 Matter Capacity 300 Sight Range 16 Terrain Scan Range 14 Terrain Scan Density 10 Armor Coverage 150 Resistance: EM 15 Propulsion Shielding 33 Utility Shielding 66 Evasion (%) 78 Melee Accuracy 13 Offensive Hacking 43 Defensive Hacking 14 Item Schematics ----------------- None Robot Schematics ------------------ None Fabricated ------------ Nothing Repaired ---------- Nothing Studied --------- VTOL Module | -5/Factory | Hacked Mic. Nuclear Core | -5/Factory | Hacked Alien Tech Used ----------------- None Achievements -------------- None Challenges ------------ None Game ------ Seed GyrokineticRelayStripper Manual? 0 Play Time 00:46:47 Cumulative 665.6 hours Start 2025.11.16 @ 12:18:37 End 2025.11.16 @ 13:07:19 Sessions 1 Manual Loads 0 Difficulty Rogue Special Mode None Game No. 287 Rogue 287 Adventurer 0 Explorer 0 Win Type 0 Total 65 Types 34/4/10/4/6/1/0/3/0/3 Lore% 96 Gallery% 89 Achievement% 78 Wizard Run 0 Options --------- Layout 1 ASCII 0 Keyboard 0 Movement Numpad Keybinds 0 Fullscreen 1 Font 24/Smallcaps Map View 50x35 Zoom Use 0% Tactical HUD 1 Map Filters NONE Filters NONE Steam 1 RUN: a70a2731-2dde-41b1-832f-73ac6d1832fb